bitfinex-derivatives/quotes_SOLF0:USTF0_20250821
["timestamp","ask_amount","ask_price","bid_price","bid_amount"]
[1755762460103,201.6149816,186.92,186.85,3.05]
[1755762460303,3.61788172,186.96,186.87,3.05]
[1755762460604,3.61788172,186.96,186.88,5.3508]
[1755762460999,3.61788172,186.96,186.9,0.03771233]
[1755762464502,1.32,186.96,186.9,0.03771233]
[1755762464706,1.32,186.96,186.92,3.05]
[1755762464906,1.32,186.95,186.92,3.05]
[1755762465708,1.32,186.97,186.93,3.05]
[1755762465904,1.32,186.97,186.91,3.05]
[1755762466504,1.32,187.01,186.93,3.05]
[1755762467005,1.32,187.01,186.93,8.3995]
[1755762467206,1.32,187.01,186.95,0.04005309]
[1755762467806,1.32,186.99,186.95,0.04005309]
[1755762468009,1.32,186.97,186.95,0.04005309]
[1755762468510,2.29788172,187.0,186.95,0.04005309]
[1755762468709,1.32,186.96,186.95,0.04005309]
[1755762469808,2.29788172,187.0,186.95,0.04005309]
[1755762470111,1.32,186.99,186.95,3.09005309]
[1755762470610,1.32,187.02,186.96,3.05]
[1755762471211,1.32,187.02,186.98,3.05]
[1755762471706,1.32,187.02,186.95,3.09005309]
[1755762472207,2.29788172,187.03,186.95,3.09005309]
[1755762472413,2.29788172,187.05,186.98,3.05]
[1755762472915,3.61788172,187.06,186.98,3.05]
[1755762473113,3.61788172,187.06,187.0,0.0377878]
[1755762473413,1.32,187.05,187.0,0.0377878]
[1755762473617,2.29788172,187.06,187.0,0.0377878]
[1755762473911,1.32,187.03,187.0,0.0377878]
[1755762475310,2.29788172,187.06,187.0,0.0377878]
[1755762475513,1.32,187.03,187.0,3.0877878]
[1755762475816,3.61788172,187.06,187.0,3.0877878]
[1755762476118,3.62788172,187.08,187.0,3.0877878]
[1755762476507,3.62788172,187.08,187.0,3.05]
[1755762477009,3.62788172,187.08,187.02,0.03841542]
[1755762477209,2.29788172,187.08,187.02,0.03841542]
[1755762477613,1.33,187.06,187.02,0.03841542]
[1755762477915,2.29788172,187.06,187.02,0.03841542]
[1755762478116,1.33,187.03,187.02,0.03841542]
[1755762479311,2.29788172,187.07,187.02,0.03841542]
[1755762479612,2.29788172,187.08,187.02,0.03841542]
[1755762479916,1.33,187.07,187.02,0.03841542]
[1755762480116,130.5,187.11,187.02,0.03841542]
[1755762480321,1.33,187.05,187.02,0.03841542]
[1755762480517,3.62788172,187.03,187.02,0.03841542]
[1755762481719,3.62788172,187.03,186.93,3.0]
[1755762481919,1.29,186.99,186.93,3.0]
[1755762482219,1.29,186.99,186.93,8.3494]
[1755762482420,1.29,187.04,186.94,3.0]
[1755762482613,1.29,187.04,186.95,2.29788172]
[1755762482817,1.29,187.04,186.91,138.12309584]
[1755762482818,1.29,187.04,186.96,8.3483]
[1755762483220,1.29,187.04,186.96,3.0]
[1755762483419,1.29,187.04,186.97,5.3483]
[1755762484021,1.29,187.04,186.96,3.0]
[1755762484022,1.29,187.04,186.96,8.3487]
[1755762484221,1.29,187.04,186.96,3.0]
[1755762484417,2.29788172,187.03,186.96,3.0]
[1755762485821,2.29788172,187.03,186.97,5.3484]
[1755762489120,2.29788172,187.05,186.98,8.3481]
[1755762489518,1.29,187.04,186.95,3.0]
[1755762489715,2.29788172,187.03,186.95,8.3489]
[1755762489922,3.58788172,187.04,186.95,3.0]
[1755762490221,3.58788172,187.04,186.97,5.3482]
[1755762490420,3.58788172,187.04,186.97,3.0]
[1755762490722,2.29788172,187.06,186.97,3.0]
[1755762490921,2.29788172,187.06,186.99,5.3476]
[1755762491126,2.29788172,187.06,187.0,3.0]
[1755762491325,3.58788172,187.07,187.0,3.0]
[1755762491524,3.58788172,187.07,187.01,5.3472]
[1755762493923,3.58788172,187.07,187.0,3.0]
[1755762494232,1.29,187.07,187.0,3.0]
[1755762494418,3.58788172,187.07,187.0,3.0]
[1755762494723,3.58788172,187.07,187.0,8.3473]
[1755762495026,3.58788172,187.07,187.0,3.0]
[1755762495530,3.58788172,187.07,187.01,5.3472]
[1755762495728,3.58788172,187.07,187.0,3.0]
[1755762496028,2.29788172,187.05,186.97,3.0]
[1755762496326,2.29788172,187.05,186.99,5.3477]
[1755762496528,2.29788172,187.05,186.99,8.3477]
[1755762496929,2.29788172,187.05,186.99,3.0]
[1755762497225,1.29,187.04,186.96,3.0]
[1755762497429,1.29,187.02,186.96,3.0]
[1755762498829,1.29,187.0,186.96,3.0]
[1755762499525,3.58788172,186.99,186.92,141.66418844]
[1755762499732,2.29788172,186.99,186.92,138.66418844]
[1755762499925,2.29788172,187.03,186.93,3.0]
[1755762500330,2.29788172,187.01,186.93,3.0]
[1755762501931,2.29788172,186.99,186.93,3.0]
[1755762502831,1.29,187.0,186.93,3.0]
[1755762503232,2.29788172,187.01,186.94,3.0]
[1755762505733,2.29788172,187.01,186.94,8.3492]
[1755762507835,2.29788172,187.01,186.94,3.0]
[1755762508026,3.58788172,187.01,186.94,3.0]
[1755762509135,2.29788172,186.99,186.94,3.0]
[1755762509337,2.29788172,186.97,186.89,2.99]
[1755762510137,2.29788172,186.95,186.89,2.99]
[1755762514139,1.29,186.92,186.89,2.99]
[1755762514438,1.29,186.92,186.86,2.99]
[1755762514937,2.29788172,186.91,186.86,2.99]
[1755762515139,1.29,186.9,186.86,2.99]
[1755762515437,1.29,186.9,186.82,2.29788172]
[1755762515636,2.29788172,186.93,186.86,5.3513]
[1755762515840,2.29788172,186.96,186.85,2.99]
[1755762516340,3.58788172,186.97,186.87,2.99]
[1755762516638,3.58788172,187.01,186.9,2.29788172]
[1755762516838,3.58788172,187.01,186.93,2.99]
[1755762517240,3.58788172,187.01,186.93,8.3395]
[1755762519335,3.58788172,187.01,186.9,2.29788172]
[1755762519542,2.29788172,187.03,186.95,2.99]
[1755762520242,2.29788172,187.03,186.96,5.3487]
[1755762521646,2.29788172,187.03,186.96,8.3387]
[1755762522645,2.29788172,187.03,186.96,2.99]
[1755762523137,1.29,187.02,186.96,2.99]
[1755762523343,1.29,187.0,186.96,2.99]
[1755762523543,1.29,186.99,186.92,2.99]
[1755762524044,3.58788172,186.99,186.92,2.99]
[1755762524241,2.29788172,186.97,186.92,2.99]
[1755762524543,1.29,186.96,186.92,2.99]
[1755762524746,1.29,186.95,186.92,2.99]
[1755762526351,3.58788172,186.97,186.92,2.99]
[1755762527452,2.29788172,186.97,186.92,2.99]
[1755762527652,1.29,186.96,186.92,2.99]
[1755762528347,2.29788172,186.97,186.94,2.99]
[1755762530353,2.29788172,186.97,186.95,2.99]
[1755762533150,2.29788172,186.97,186.92,2.99]
[1755762533354,2.29788172,186.97,186.87,2.29788172]
[1755762533355,2.29788172,186.97,186.88,2.99]
[1755762533956,2.29788172,186.97,186.89,2.99]
[1755762537059,2.29788172,186.97,186.89,8.3406]
[1755762537256,2.29788172,186.97,186.9,2.74]
[1755762541058,2.29788172,186.97,186.9,5.3504]
[1755762541359,2.29788172,186.97,186.91,2.74]
[1755762541857,3.58788172,186.95,186.86,2.74]
[1755762542057,2.29788172,186.93,186.86,2.74]
[1755762542361,3.58788172,186.91,186.87,2.74]
[1755762544162,1.29,186.91,186.87,2.74]
[1755762546863,1.29,186.91,186.84,5.3521]
[1755762547064,1.29,186.91,186.88,2.74]
[1755762548261,2.29788172,186.9,186.82,2.74]
[1755762548467,3.58788172,186.9,186.82,2.74]
[1755762548968,2.29788172,186.88,186.82,2.74]
[1755762549769,2.29788172,186.85,186.76,2.74]
[1755762550165,2.29788172,186.85,186.76,5.3542]
[1755762550361,2.29788172,186.85,186.77,2.74]
[1755762552468,2.29788172,186.87,186.78,2.74]
[1755762552669,2.29788172,186.87,186.8,5.3532]
[1755762552965,2.29788172,186.87,186.81,2.74]
[1755762561678,1.29,186.89,186.81,2.74]
[1755762561881,2.29788172,186.88,186.82,2.74]
[1755762564081,1.3,186.96,186.82,2.74]
[1755762564281,3.59788172,186.93,186.82,2.74]
[1755762564783,3.59788172,186.93,186.85,2.74]
[1755762565280,2.29788172,186.91,186.85,2.74]
[1755762567282,1.3,186.92,186.85,2.74]
[1755762567479,2.29788172,186.91,186.85,2.74]
[1755762567983,200.96439214,186.97,186.85,2.74]
[1755762568181,2.29788172,186.95,186.87,2.85]
[1755762568784,1.29,186.94,186.87,2.85]
[1755762571187,2.29788172,186.93,186.87,2.85]
[1755762571384,200.96439214,186.97,186.87,2.85]
[1755762571385,2.29788172,186.91,186.87,2.85]
[1755762571685,1.29,186.9,186.87,2.85]
[1755762571885,2.29788172,186.93,186.88,2.85]
[1755762572088,2.29788172,186.93,186.89,2.85]
[1755762572284,1.29,186.92,186.83,2.29788172]
[1755762572485,1.29,186.92,186.84,2.85]
[1755762572888,2.29788172,186.93,186.87,2.85]
[1755762575390,3.58788172,186.95,186.88,2.85]
[1755762576289,3.58788172,186.95,186.88,8.201]
[1755762579793,3.58788172,186.95,186.88,2.85]
[1755762580193,1.29,186.92,186.88,2.85]
[1755762580493,1.29,186.92,186.83,2.85]
[1755762580893,2.29788172,186.91,186.83,2.85]
[1755762581395,2.29788172,186.91,186.84,5.3521]
[1755762581594,2.29788172,186.91,186.85,2.85]
[1755762582396,2.29788172,186.91,186.85,8.2018]
[1755762582997,1.29,186.92,186.85,8.2018]
[1755762583297,2.29788172,186.94,186.86,5.3515]
[1755762583597,2.29788172,186.94,186.87,2.85]
[1755762584196,2.29788172,186.94,186.88,2.85]
[1755762584799,2.29788172,186.94,186.88,8.201]
[1755762585095,2.29788172,186.94,186.85,2.85]
[1755762585596,2.29788172,186.94,186.86,5.3515]
[1755762586395,2.29788172,186.94,186.87,8.2011]
[1755762586592,1.29,186.95,186.87,2.85]
[1755762586898,3.58788172,186.95,186.87,2.85]
[1755762587596,3.58788172,186.95,186.84,2.29788172]
[1755762587898,3.58788172,186.95,186.92,2.85]
[1755762589999,1.29,186.94,186.87,5.351]
[1755762590201,1.29,186.94,186.9,2.85]
[1755762590400,2.29788172,186.95,186.9,2.85]
[1755762590601,1.29,186.94,186.9,2.85]
[1755762590900,1.29,186.94,186.89,2.85]
[1755762591404,1.29,186.94,186.85,2.85]
[1755762592503,1.29,186.94,186.89,5.3506]
[1755762592705,1.29,186.94,186.9,2.85]
[1755762593004,2.29788172,186.95,186.9,2.85]
[1755762593307,2.29788172,186.95,186.91,2.85]
[1755762593506,3.58788172,186.95,186.91,2.85]
[1755762595204,1.29,186.94,186.91,2.85]
[1755762595409,1.29,186.94,186.88,8.2009]
[1755762596010,1.29,186.94,186.89,5.3506]
[1755762596301,1.29,186.94,186.91,3.01]
[1755762596509,2.29788172,186.95,186.92,3.01]
[1755762596703,3.59788172,186.95,186.92,3.01]
[1755762599308,2.29788172,186.95,186.92,3.01]
[1755762599507,3.59788172,186.95,186.92,3.01]
[1755762600205,200.96439214,186.97,186.87,3.01]
[1755762600411,200.96439214,186.97,186.89,3.01]
[1755762600705,200.96439214,186.97,186.95,3.01]
[1755762600909,130.54,187.0,186.91,3.01]
[1755762601312,130.54,187.0,186.97,3.01]
[1755762601504,130.54,187.0,186.96,5.3487]
[1755762601807,1.3,187.01,186.98,3.01]
[1755762603410,3.59788172,187.03,187.0,3.01]
[1755762604417,1.3,187.02,186.94,2.29788172]
[1755762604609,1.3,187.02,186.98,3.01]
[1755762604910,132.83788172,187.04,186.95,3.01]
[1755762605412,130.54,187.04,186.98,3.01]
[1755762605609,3.59788172,187.05,186.98,3.01]
[1755762605912,3.59788172,187.05,186.99,5.3478]
[1755762606113,192.73608462,187.07,187.01,3.01]
[1755762607716,192.73608462,187.07,187.01,8.3573]
[1755762609117,192.73608462,187.07,187.01,3.01]
[1755762609514,194.03608462,187.07,187.01,3.01]
[1755762609816,194.03608462,187.07,187.01,8.3571]
[1755762610415,191.7382029,187.07,187.01,8.3571]
[1755762611415,194.03608462,187.07,187.01,8.3571]
[1755762612010,192.73608462,187.07,187.02,5.3469]
[1755762612217,190.4382029,187.07,187.04,3.01]
[1755762612713,191.7382029,187.07,187.04,3.01]
[1755762615317,2.29788172,187.09,186.98,2.29788172]
[1755762615515,2.29788172,187.09,186.99,3.01]
[1755762616518,2.29788172,187.09,187.04,5.3462]
[1755762616718,3.59788172,187.09,187.05,3.01]
[1755762618121,3.59788172,187.09,187.04,5.3462]
[1755762618319,1.29,187.08,187.05,3.01]
[1755762618624,2.29788172,187.09,187.05,3.01]
[1755762618824,131.77,187.1,187.06,3.01]
[1755762619120,2.29788172,187.12,187.01,2.29788172]
[1755762619425,2.29788172,187.12,187.05,3.01]
[1755762619823,3.58788172,187.12,187.08,3.01]
[1755762620322,1.29,187.12,187.09,3.01]
[1755762621222,1.29,187.12,187.1,3.01]
[1755762621924,134.04788172,187.15,187.11,3.01]
[1755762622125,3.58788172,187.15,187.11,3.01]
[1755762622515,1.29,187.14,187.11,3.01]
[1755762623121,1.29,187.14,187.08,8.3552]
[1755762623332,1.29,187.14,187.09,4.79871322]
[1755762623520,1.29,187.14,187.08,8.3552]
[1755762623722,1.29,187.14,187.09,4.79814939]
[1755762623924,1.29,187.14,187.08,8.3552]
[1755762624123,1.29,187.14,187.1,3.01]
[1755762624319,1.29,187.13,187.1,3.01]
[1755762625732,1.29,187.12,187.01,3.01]
[1755762625930,1.29,187.12,187.02,9.04154849]
[1755762626230,1.29,187.12,187.05,5.3461]
[1755762626432,1.29,187.12,187.06,6.74366677]
[1755762626732,1.29,187.12,187.03,2.98]
[1755762626733,1.29,187.12,187.07,4.7968289]
[1755762626924,1.29,187.12,187.05,2.98]
[1755762627122,1.29,187.12,187.06,4.79733843]
[1755762627324,1.29,187.12,187.07,4.79779473]
[1755762627527,1.29,187.12,187.05,8.3261]
[1755762627727,1.29,187.12,187.06,4.79795134]
[1755762627931,1.29,187.12,187.05,8.3261]
[1755762628132,1.29,187.12,187.06,6.74491354]
[1755762628431,1.29,187.11,187.07,7.77770675]
[1755762628633,1.29,187.11,187.07,2.98]
[1755762629329,2.29788172,187.13,187.07,2.98]
[1755762629536,1.29,187.12,187.07,2.98]
[1755762629727,1.29,187.11,187.07,2.98]
[1755762629930,1.29,187.1,187.07,2.98]
[1755762632438,1.29,187.1,187.05,5.3461]
[1755762632634,1.29,187.12,187.06,7.78026972]
[1755762632836,1.29,187.12,187.06,2.98]
[1755762633139,1.29,187.12,187.06,8.3258]
[1755762633326,3.58788172,187.15,187.07,4.80054128]
[1755762633532,3.58788172,187.15,187.08,7.7794914]
[1755762633732,3.58788172,187.15,187.09,2.98]
[1755762634029,1.29,187.15,187.09,2.98]
[1755762635039,1.29,187.13,187.04,2.98]
[1755762635236,1.29,187.13,187.05,6.75020118]
[1755762635539,1.29,187.13,187.04,8.3262]
[1755762635540,1.29,187.13,187.06,9.73150353]
[1755762635741,1.29,187.13,187.07,6.75150353]
[1755762635937,1.29,187.12,187.09,2.98]
[1755762637037,1.29,187.12,187.1,2.98]
[1755762637838,2.29788172,187.14,187.1,2.98]
[1755762638043,1.29,187.13,187.1,2.98]
[1755762638245,2.29788172,187.14,187.1,2.98]
[1755762638441,1.29,187.12,187.1,2.98]
[1755762638744,1.29,187.12,187.07,2.98]
[1755762639041,1.29,187.12,187.08,7.78936534]
[1755762639236,2.29788172,187.14,187.08,2.98]
[1755762639437,1.29,187.11,187.08,2.98]
[1755762641450,1.29,187.11,187.09,7.79595476]
[1755762641649,2.29788172,187.12,187.09,2.98]
[1755762641849,3.58788172,187.12,187.09,2.98]
[1755762643855,2.29788172,187.14,187.06,2.98]
[1755762644058,2.29788172,187.14,187.08,2.98]
[1755762644252,1.29,187.13,187.09,9.75381686]
[1755762644447,2.29788172,187.14,187.1,4.82325189]
[1755762644658,1.29,187.11,187.09,2.98]
[1755762644851,1.29,187.11,187.1,4.82324595]
[1755762645857,2.29788172,187.14,187.1,4.82324595]
[1755762646059,1.29,187.13,187.11,4.82287569]
[1755762646355,3.58788172,187.14,187.11,2.98]
[1755762648949,1.29,187.13,187.11,2.98]
[1755762649354,1.29,187.13,187.12,4.83130817]
[1755762650358,2.29788172,187.14,187.12,4.83130817]
[1755762650559,3.58788172,187.14,187.1,2.98]
[1755762650858,3.58788172,187.14,187.11,9.77281945]
[1755762651057,3.58788172,187.14,187.12,4.83311213]
[1755762651259,3.58788172,187.14,187.11,2.98]
[1755762651459,3.58788172,187.14,187.12,6.79362966]
[1755762651659,3.58788172,187.14,187.11,2.98]
[1755762651860,3.58788172,187.14,187.12,6.79362966]
[1755762652057,3.58788172,187.14,187.11,2.98]
[1755762652257,3.58788172,187.14,187.12,6.79463771]
[1755762652459,3.58788172,187.14,187.11,2.98]
[1755762652660,3.58788172,187.14,187.12,6.79463771]
[1755762652862,3.58788172,187.14,187.11,2.98]
[1755762653056,3.58788172,187.14,187.12,6.79463213]
[1755762653252,3.58788172,187.14,187.11,2.98]
[1755762653556,3.58788172,187.14,187.12,6.79559947]
[1755762653756,3.58788172,187.14,187.11,2.98]
[1755762653959,3.58788172,187.14,187.12,9.77559947]
[1755762654159,2.29788172,187.14,187.12,2.98]
[1755762654362,2.29788172,187.14,187.09,2.98]
[1755762654557,2.29788172,187.14,187.12,2.98]
[1755762655664,2.29788172,187.14,187.13,4.8389283]
[1755762656365,2.29788172,187.14,187.13,4.84000955]
[1755762656665,3.58788172,187.16,187.13,7.75000955]
[1755762656871,3.58788172,187.16,187.14,4.98438249]
[1755762657165,3.58788172,187.16,187.13,2.91]
[1755762657365,3.58788172,187.16,187.14,4.98562904]
[1755762657566,3.58788172,187.16,187.13,2.91]
[1755762657766,2.29788172,187.16,187.14,7.89562904]
[1755762657967,3.58788172,187.16,187.14,2.91]
[1755762658162,3.58788172,187.16,187.11,2.91]
[1755762658369,3.58788172,187.16,187.12,6.95187709]
[1755762658666,3.58788172,187.16,187.13,9.86187709]
[1755762658862,3.58788172,187.16,187.14,4.98775598]
[1755762659065,3.58788172,187.16,187.13,2.91]
[1755762659368,3.58788172,187.16,187.14,4.98809094]
[1755762659664,3.58788172,187.16,187.15,4.98940079]
[1755762660063,1.29,187.15,187.09,2.91]
[1755762660258,1.29,187.12,187.1,6.76427023]
[1755762660465,1.29,187.12,187.09,2.91]
[1755762660466,1.29,187.12,187.11,6.76427023]
[1755762660765,1.29,187.12,187.11,6.76438748]
[1755762661364,1.29,187.12,187.06,2.91]
[1755762661569,2.29788172,187.09,187.06,2.91]
[1755762661861,2.29788172,187.09,187.07,2.91]
[1755762662060,2.29788172,187.11,187.03,7.36815351]
[1755762662262,2.29788172,187.11,187.04,2.91]
[1755762662464,2.29788172,187.12,187.04,2.91]
[1755762662666,2.29788172,187.12,187.06,5.3458]
[1755762662867,2.29788172,187.12,187.07,2.91]
[1755762663068,2.29788172,187.14,187.07,2.91]
[1755762663561,2.29788172,187.12,187.04,4.45815351]
[1755762663760,2.29788172,187.12,187.05,4.45815351]
[1755762663967,2.29788172,187.12,187.09,2.91]
[1755762664165,2.29788172,187.13,187.07,2.91]
[1755762664660,3.58788172,187.13,187.07,2.91]
[1755762666365,1.29,187.16,187.07,2.91]
[1755762666659,2.29788172,187.13,187.07,2.91]
[1755762667465,2.29788172,187.13,187.07,8.2554]
[1755762667661,2.29788172,187.13,187.07,5.3454]
[1755762667967,3.58788172,187.13,187.09,2.91]
[1755762668171,3.58788172,187.11,187.1,5.06138498]
[1755762668464,3.58788172,187.11,187.1,5.06229832]
[1755762668865,3.58788172,187.11,187.08,2.91]
[1755762669362,2.29788172,187.11,187.09,2.91]
[1755762669567,3.58788172,187.13,187.1,2.91]
[1755762671067,3.58788172,187.13,187.07,5.3454]
[1755762671274,2.29788172,187.13,187.11,2.91]
[1755762672071,2.29788172,187.13,187.09,2.91]
[1755762672569,2.29788172,187.13,187.08,5.3452]
[1755762672869,2.29788172,187.13,187.11,2.91]
[1755762673265,2.29788172,187.13,187.12,6.7590476]
[1755762674680,2.29788172,187.13,187.12,6.75913323]
[1755762676176,2.29788172,187.14,187.12,6.75913323]
[1755762676381,1.29,187.15,187.13,4.84116427]
[1755762676582,1.29,187.15,187.11,2.91]
[1755762676783,1.29,187.15,187.12,6.76031945]
[1755762676983,1.29,187.14,187.13,4.84201389]
[1755762677381,1.29,187.14,187.13,6.76029338]
[1755762677583,2.75681907,187.14,187.13,6.76029338]
[1755762677782,2.75681907,187.14,187.13,1.91846226]
[1755762677982,2.75681907,187.14,187.13,7.17708592]
[1755762679178,1.29,187.17,187.13,7.17708592]
[1755762679384,1.29,187.17,187.07,5.3454]
[1755762679385,1.46681907,187.14,187.07,5.3454]
[1755762679582,1.29,187.17,187.09,2.91]
[1755762679783,1.46681907,187.13,187.11,2.91]
[1755762679984,1.46681907,187.13,187.12,9.87817337]
[1755762681984,203.41244714,187.18,187.12,9.87817337]
[1755762682188,1.46681907,187.13,187.12,2.91]
[1755762682486,1.46681907,187.13,187.12,9.8793881]
[1755762684886,1.46681907,187.13,187.12,15.01077943]
[1755762686987,1.46681907,187.13,187.12,7.95908659]
[1755762687291,1.46681907,187.13,187.12,15.00216396]
[1755762687988,1.29,187.16,187.13,2.74]
[1755762688193,209.37268043,187.18,187.16,2.74]
[1755762688495,204.71244714,187.18,187.17,6.96406648]
[1755762688693,204.71244714,187.18,187.13,2.74]
[1755762688886,203.41244714,187.18,187.14,1.91862092]
[1755762689086,1.3,187.16,187.15,1.91862092]
[1755762689586,2.76681907,187.16,187.15,1.91862092]
[1755762691092,2.76681907,187.16,187.1,2.74]
[1755762691391,1.46681907,187.12,187.11,4.65720377]
[1755762692389,1.3,187.16,187.11,1.91720377]
[1755762692594,1.46681907,187.13,187.12,4.65720377]
[1755762692990,1.46681907,187.13,187.12,1.91720377]
[1755762693190,1.46681907,187.13,187.12,1.91705253]
[1755762693390,1.46681907,187.13,187.12,4.65705253]
[1755762694798,1.46681907,187.14,187.12,4.65705253]
[1755762694998,1.46681907,187.14,187.13,4.65705253]
[1755762695501,1.46681907,187.14,187.13,2.74]
[1755762695699,1.46681907,187.14,187.13,1.91692732]
[1755762696102,1.46681907,187.14,187.13,4.65692732]
[1755762696599,1.46681907,187.14,187.13,4.65720346]
[1755762697197,1.46681907,187.14,187.13,4.65746053]
[1755762698895,131.66,187.17,187.13,4.65746053]
[1755762699097,131.66,187.17,187.14,1.91746053]
[1755762699398,1.46681907,187.14,187.1,2.74]
[1755762699600,1.46681907,187.14,187.11,1.91757217]
[1755762699796,1.46681907,187.14,187.12,1.91757217]
[1755762699999,1.46681907,187.14,187.13,4.65757217]
[1755762700606,1.46681907,187.14,187.13,9.63055734]
[1755762704207,1.46681907,187.14,187.13,14.79618878]
[1755762705206,1.46681907,187.14,187.13,9.63055734]
[1755762705699,1.46681907,187.14,187.1,2.74]
[1755762705909,1.3,187.13,187.11,6.8912681]
[1755762706203,1.3,187.16,187.12,6.89248718]
[1755762706409,1.3,187.15,187.13,1.91818151]
[1755762706608,1.3,187.15,187.14,4.97424449]
[1755762707109,1.46681907,187.15,187.14,11.88249849]
[1755762708411,1.46681907,187.15,187.14,14.62249849]
[1755762709508,130.32,187.17,187.14,14.62249849]
[1755762709709,1.46681907,187.16,187.15,11.88249849]
[1755762710308,1.46681907,187.16,187.15,14.62249849]
[1755762711110,1.46681907,187.16,187.15,9.63285858]
[1755762714114,1.46681907,187.16,187.15,6.89285858]
[1755762714308,2.76681907,187.16,187.11,2.74]
[1755762714505,1.46681907,187.12,187.11,2.74]
[1755762714807,1.46681907,187.12,187.08,4.49334605]
[1755762715008,1.3,187.16,187.1,2.74]
[1755762715507,1.46681907,187.12,187.11,2.74]
[1755762717207,1.46681907,187.12,187.11,7.77679223]
[1755762720812,1.46681907,187.12,187.11,2.74]
[1755762721012,1.46681907,187.12,187.11,7.77942531]
[1755762721612,1.29,187.11,187.04,4.49334605]
[1755762721813,1.29,187.11,187.04,2.8]
[1755762721814,1.46681907,187.05,187.04,2.8]
[1755762722010,1.46681907,187.07,187.04,2.8]
[1755762722205,1.29,187.14,187.05,2.8]
[1755762722411,1.46681907,187.09,187.05,2.8]
[1755762722709,130.3,187.13,187.05,2.8]
[1755762722710,1.46681907,187.07,187.05,2.8]
[1755762723112,1.29,187.12,187.06,2.8]
[1755762723311,1.46681907,187.11,187.06,2.8]
[1755762723907,1.46681907,187.11,187.07,2.8]
[1755762724111,1.29,187.16,187.07,2.8]
[1755762724112,1.46681907,187.14,187.08,2.8]
[1755762724313,1.46681907,187.14,187.09,2.8]
[1755762724706,203.41244714,187.18,187.11,1.46681907]
[1755762724917,1.46681907,187.17,187.12,2.8]
[1755762725712,1.46681907,187.21,187.15,1.46681907]
[1755762725912,1.46681907,187.21,187.16,2.8]
[1755762726120,1.46681907,187.23,187.17,1.46681907]
[1755762726317,2.28924701,187.25,187.18,2.8]
[1755762727615,2.28924701,187.25,187.2,2.8]
[1755762727817,3.57924701,187.25,187.21,9.72547293]
[1755762728009,3.57924701,187.25,187.22,9.72547293]
[1755762728215,2.28924701,187.25,187.24,2.8]
[1755762728410,130.3,187.26,187.24,9.72223981]
[1755762728724,130.3,187.26,187.25,6.92223981]
[1755762729217,130.3,187.26,187.24,2.8]
[1755762729620,1.29,187.25,187.17,2.8]
[1755762729819,2.28924701,187.24,187.18,6.91963344]
[1755762730021,2.28924701,187.24,187.17,2.8]
[1755762730022,3.57924701,187.24,187.2,2.8]
[1755762730315,3.57924701,187.22,187.17,2.8]
[1755762730518,130.3,187.26,187.18,6.92054944]
[1755762730519,2.28924701,187.2,187.18,6.92054944]
[1755762730723,1.29,187.19,187.15,2.8]
[1755762730919,1.29,187.19,187.16,6.92293729]
[1755762731121,1.29,187.19,187.17,6.92293729]
[1755762731327,2.28924701,187.18,187.15,2.8]
[1755762731520,3.57924701,187.18,187.16,6.92372962]
[1755762731720,3.57924701,187.18,187.12,2.8]
[1755762731922,2.28924701,187.16,187.13,9.72474509]
[1755762732224,2.28924701,187.16,187.14,6.92474509]
[1755762732417,2.28924701,187.16,187.15,6.92474509]
[1755762732618,2.28924701,187.16,187.13,2.8]
[1755762732919,2.28924701,187.16,187.14,9.72500341]
[1755762733115,3.57924701,187.16,187.15,6.92493806]